[Event "4NCL Spring GM Round Robin 2024"]
[Site "Peterborough"]
[Date "2024.03.24"]
[Round "3.2"]
[White "Chow, Samuel"]
[Black "Makkar, Rajat"]
[Result "0-1"]
[ECO "E14"]
[WhiteElo "2356"]
[BlackElo "2434"]
[Annotator "TA"]
[PlyCount "98"]
[EventDate "2024.03.22"]
[EventType "tourn"]
[EventCountry "ENG"]
[SourceTitle "playchess.com"]
[Source "ChessBase"]
[SourceQuality "1"]
[TimeControl "5400+30"]

{[%evp 20,98,11,0,20,8,8,9,10,17,0,0,0,0,0,0,0,-5,-8,-1,0,0,0,0,0,0,42,0,0,-8,44,22,76,70,85,95,72,95,82,95,98,51,51,42,82,0,0,0,0,0,0,0,29990,0,0,0,0,0,8,-1413,-1116,-1536,-762,-818,-762,-5065,-3106,-1086,-1660,-12814,-12803,-12766,-12614,-6590,-5077,-29944,-29939,-29950,-29943,-12827,-7997]} 1. d4 {[%emt 0:00:08]} d5 {[%emt 0:00:52]} 2. c4 {[%emt 0:00:32]} c6 {[%emt 0:00:10]} 3. Nc3 {[%emt 0:00:23]} Nf6 {[%emt 0:00:05]} 4. e3 {[%emt 0:00:23]} e6 {[%emt 0:00:37]} 5. Nf3 {[%emt 0:00:08]} Nbd7 {[%emt 0:00:07]} 6. Be2 {[%emt 0:00:18]} b6 {[%emt 0:00:10]} 7. O-O {[%emt 0:00:57]} Bb7 {[%emt 0:00:13]} 8. b3 {[%emt 0:00:34]} Bd6 {[%emt 0:00:16]} 9. Bb2 {[%emt 0:00:11]} O-O {[%emt 0:00:36]} 10. Bd3 {[%emt 0:01:26]} c5 {[%emt 0:00:55]} 11. cxd5 {[%emt 0:01:50] E14: Damenindisch (Zentralsystem).} Nxd5 {[%emt 0:00:18]} 12. Nxd5 {[%emt 0:00:44]} Bxd5 {[%emt 0:00:10]} 13. e4 {[%emt 0:01:07]} Bb7 {[%emt 0:00:05]} 14. d5 {[%emt 0:00:28]} exd5 {[%emt 0:00:14]} 15. exd5 {[%emt 0:00:09]} Be7 {[%emt 0:00:08]} 16. Qc2 {[%emt 0:06:40]} h6 {[%emt 0:00:06]} 17. Rad1 {[%emt 0:00:41]} Bf6 $1 {[%emt 0:00:05]} (17... Nf6 $6 18. Rfe1 $16) 18. Bc4 {[%emt 0:07:23]} a6 $146 {[%emt 0:07:37]} ({Predecessor:} 18... Bxb2 19. Qxb2 Nf6 20. Ne5 Qd6 21. Rd3 a6 22. a4 Rfe8 23. f4 Rad8 24. Rfd1 Nh5 {0-1 Sturt,R (2500)-Petkov,M (2426) Arandjelovac Akva Gold GM2 2021 (1)}) 19. a4 {[%emt 0:00:21]} Bxb2 {[%emt 0:01:29]} 20. Qxb2 {[%emt 0:00:07]} Qf6 {[%emt 0:00:06]} 21. Qc2 {[%emt 0:00:58]} Rfe8 {[%emt 0:07:20]} 22. Rfe1 {[%emt 0:06:48]} Qd6 {[%emt 0:01:18]} 23. Qd3 {[%emt 0:06:11]} Nf6 {[%emt 0:06:36]} 24. Nh4 {[%emt 0:07:59]} g6 {[%emt 0:08:27]} (24... Rxe1+ $11 25. Rxe1 b5 (25... Nxd5 $2 26. Nf5 $18) 26. axb5 axb5 27. Bxb5 Qxd5) 25. Re6 $14 {[%emt 0:07:53]} (25. Nxg6 Ng4 26. f4 (26. Rxe8+ $2 Rxe8 27. f4 Qxg6 $19) 26... Qxg6 $17 (26... fxg6 27. h3 $11)) 25... Rxe6 {[%emt 0:12:47]} (25... Qd8 $1 $11) 26. dxe6 $16 {[%emt 0:00:10]} Qxd3 {[%emt 0:00:07]} 27. exf7+ {[%emt 0:01:44]} (27. Bxd3 $6 fxe6 28. Nxg6 (28. Bxg6 Bd5 $15) 28... Bd5 $11) 27... Kg7 {[%emt 0:00:29]} 28. Rxd3 {[%emt 0:07:16]} (28. Bxd3 {vereinfacht} Bd5 29. Nxg6 Bxf7 30. Ne5) 28... b5 {[%emt 0:05:49]} 29. Be6 {[%emt 0:00:10]} (29. axb5 $2 {verliert.} axb5 30. f8=Q+ Kxf8 $19) 29... Be4 {[%emt 0:02:23]} 30. Rc3 {[%emt 0:03:29]} ({Besser ist} 30. Rd6 $16) 30... c4 {[%emt 0:07:50]} 31. bxc4 {[%emt 0:01:07]} b4 {[%emt 0:00:31] [#]} 32. Re3 {[%emt 0:03:16]} (32. Rg3 $1 $16 {c5 wäre nun fies.} g5 33. f4) 32... Rd8 $1 $11 {[%emt 0:05:00]} 33. h3 {[%emt 0:04:32]} Rd6 {[%emt 0:01:49]} 34. Rxe4 {[%emt 0:11:12]} Nxe4 {[%emt 0:00:15]} 35. Nxg6 $1 {[%emt 0:00:11]} Rd1+ {[%emt 0:01:19]} 36. Kh2 {[%emt 0:00:07]} Rd8 $1 {[%emt 0:00:47]} 37. f8=Q+ {[%emt 0:02:15]} (37. f8=R Rxf8 38. Nxf8 Kxf8) 37... Rxf8 {[%emt 0:00:20]} 38. Nxf8 {[%emt 0:00:05]} Kxf8 {[%emt 0:00:04] [#]} 39. c5 $2 {[%emt 0:01:57][%mdl 8192]} (39. Bf5 $1 $11 Nd6 40. Bg6 Nxc4 41. Bd3) 39... Nxc5 $19 {[%emt 0:00:58]} 40. Bf5 {[%emt 0:02:32]} Nxa4 {[%emt 0:01:25]} 41. Kg3 {[%emt 0:01:18]} b3 {[%emt 0:08:04]} 42. Kf3 {[%emt 0:01:00]} Nc3 {[%emt 0:00:22]} 43. Ke3 {[%emt 0:05:11]} b2 {[%emt 0:00:06]} 44. Kd4 {[%emt 0:01:25]} b1=Q {[%emt 0:00:13]} (44... b1=B $2 45. Bc8 Nb5+ 46. Kc5 $17) 45. Bxb1 {[%emt 0:00:04]} Nxb1 {[%emt 0:00:02]} 46. Kd3 {[%emt 0:01:04]} Na3 {[%emt 0:02:25]} 47. g4 {[%emt 0:00:30]} Nb5 {[%emt 0:00:50]} 48. f4 {[%emt 0:00:23]} Nc7 {[%emt 0:01:23]} 49. h4 {[%emt 0:08:20]} Nd5 {[%emt 0:01:28]} 0-1

[Event "4NCL Spring GM Round Robin 2024"]
[Site "Peterborough"]
[Date "2024.03.24"]
[Round "3.3"]
[White "Teclaf, Pawel"]
[Black "Royal, Shreyas"]
[Result "1-0"]
[ECO "D32"]
[WhiteElo "2556"]
[BlackElo "2457"]
[Annotator "TA"]
[PlyCount "107"]
[EventDate "2024.03.22"]
[EventType "tourn"]
[EventCountry "ENG"]
[SourceTitle "playchess.com"]
[Source "ChessBase"]
[SourceQuality "1"]
[TimeControl "5400+30"]

{[%evp 22,107,17,11,34,16,89,85,91,85,93,103,108,106,101,98,99,97,100,100,102,93,100,96,102,87,91,91,103,94,95,95,100,98,106,92,103,83,135,135,140,114,127,107,98,100,99,101,108,89,90,89,83,77,149,149,184,165,293,68,68,68,59,59,4210,3308,6627,6454,5616,1741,29971,29972,29972,29973,29973,29974,29975,29975,29977,29978,29978,29978,29987,29988,29988,29989,29989,29990]} 1. Nf3 {[%emt 0:01:25]} d5 {[%emt 0:00:10]} 2. e3 {[%emt 0:00:04]} Nf6 {[%emt 0:00:13]} 3. c4 {[%emt 0:00:10]} e6 {[%emt 0:00:08]} 4. b3 {[%emt 0:00:04]} c5 {[%emt 0:00:31]} 5. cxd5 {[%emt 0:00:10]} exd5 {[%emt 0:00:05]} 6. Bb2 {[%emt 0:00:05]} Nc6 {[%emt 0:00:17]} 7. Nc3 {[%emt 0:00:05]} Bd6 {[%emt 0:01:14][%cal Bf8d6,Bd6e5,Be5b2][%mdl 32]} 8. d4 {[%emt 0:03:25]} cxd4 {[%emt 0:00:54]} 9. Nxd4 {[%emt 0:00:05]} O-O {[%emt 0:00:57]} 10. Be2 {[%emt 0:00:04]} Re8 {[%emt 0:00:54]} 11. O-O {[%emt 0:06:25]} Nxd4 {[%emt 0:00:51]} 12. Qxd4 {[%emt 0:04:00]} Be5 {[%emt 0:00:08]} 13. Qd2 {[%emt 0:00:06]} Ne4 {[%emt 0:08:36]} (13... Be6 $11) 14. Nxe4 $16 {[%emt 0:02:39]} (14. Qxd5 $2 {perishes.} Nxc3 (14... Bxc3 $2 15. Qxd8 Rxd8 16. Bxc3 $19) 15. Qf3 Qh4 $19) 14... Bxb2 {[%emt 0:00:02] White is better.} 15. Rad1 {[%emt 0:01:26]} Ba3 {[%emt 0:08:54]} 16. Nc3 {[%emt 0:08:02]} Bb4 {[%emt 0:04:49][%cal Od5d4]} 17. Qxd5 {[%emt 0:05:08]} Qe7 {[%emt 0:00:09]} 18. Qd4 {[%emt 0:03:09] White is more active.} Bxc3 {[%emt 0:01:29]} 19. Qxc3 {[%emt 0:00:10]} Be6 {[%emt 0:00:06]} 20. Rd4 {[%emt 0:03:34]} Rac8 {[%emt 0:05:28]} 21. Qd2 {[%emt 0:00:15]} g6 {[%emt 0:02:46]} 22. Rd1 {[%emt 0:00:55]} Rc7 {[%emt 0:03:52]} 23. h3 {[%emt 0:09:17]} Rec8 {[%emt 0:02:04]} 24. Bd3 {[%emt 0:03:17] Prevents Rc2} Kg7 {[%emt 0:03:55]} 25. Be4 {[%emt 0:05:48]} b6 {[%emt 0:03:12]} 26. Rd6 {[%emt 0:03:36]} Qf6 {[%emt 0:03:15]} 27. f4 {[%emt 0:01:44]} Qc3 {[%emt 0:04:35]} 28. g4 {[%emt 0:04:39] [#] f5 would now be deadly.} Re8 {[%emt 0:05:12][%cal Oe6b3,Bc8e8,Be8e7,Be7c7][%mdl 32]} 29. Bf3 {[%emt 0:03:40]} f6 {[%emt 0:06:34]} (29... h5 $142) 30. Kf2 {[%emt 0:06:40]} Ree7 {[%emt 0:00:20]} 31. Qxc3 {[%emt 0:05:57]} Rxc3 {[%emt 0:00:02]} 32. Rc6 {[%emt 0:03:00]} Rxc6 {[%emt 0:02:11]} 33. Bxc6 {[%emt 0:00:04][%mdl 4096] Endgame. KRB-KRB} Rc7 {[%emt 0:00:12]} 34. Be4 {[%emt 0:02:02]} f5 {[%emt 0:01:43]} 35. gxf5 {[%emt 0:00:49]} gxf5 {[%emt 0:00:07]} 36. Bd3 {[%emt 0:00:31]} Kf6 {[%emt 0:00:22]} 37. Rd2 {[%emt 0:03:33]} a5 {[%emt 0:03:02]} (37... Rc1 $142) 38. Rc2 {[%emt 0:05:03]} Rxc2+ {[%emt 0:00:31]} 39. Bxc2 {[%emt 0:00:02] KB-KB} b5 {[%emt 0:00:23]} (39... Bd5 $142 40. a3 Bh1) 40. e4 $2 {[%emt 0:01:45] [#]} ({Better is} 40. Kf3 $18) 40... fxe4 $14 {[%emt 0:00:19]} 41. Bxe4 {[%emt 0:00:05]} Bxh3 {[%emt 0:09:19]} 42. Bxh7 {[%emt 0:00:12]} Ke6 $2 {[%emt 0:02:37][%mdl 8192] Black cannot hold the game after this.} (42... a4 $14) 43. Ke3 $18 {[%emt 0:01:32]} Kd5 {[%emt 0:00:41]} 44. Bg8+ {[%emt 0:00:43]} Kd6 {[%emt 0:05:28]} 45. a3 {[%emt 0:01:47]} b4 {[%emt 0:00:59]} 46. axb4 {[%emt 0:00:49] White mates.} axb4 {[%emt 0:00:02]} 47. Kd4 {[%emt 0:00:05]} Bf5 {[%emt 0:04:49]} 48. Kc4 {[%emt 0:00:49]} Ke7 {[%emt 0:00:05]} 49. Kxb4 {[%emt 0:00:22]} Kf6 {[%emt 0:00:03]} 50. Kc5 {[%emt 0:01:03]} Bg6 {[%emt 0:00:08]} 51. b4 {[%emt 0:00:44][%cal Bb3b4,Bb4b5,Bb5b6][%mdl 32]} Kf5 {[%emt 0:00:04]} 52. b5 {[%emt 0:00:10]} Kxf4 {[%emt 0:00:04]} 53. b6 {[%emt 0:00:03]} Be4 {[%emt 0:00:04]} 54. Bd5 {[%emt 0:00:02] Weighted Error Value: White=0.17 (very precise) /Black=0.29 (precise) .  Loses game:     	---       	Black=1      Missed win:     	White=1     	---        Mistake:       	---       	Black=4      Inaccurate:     	---       	Black=1      OK:         	White=12    	Black=11     Best:        	White=2     	Black=3} 1-0

[Event "4NCL Spring GM Round Robin 2024"]
[Site "Peterborough"]
[Date "2024.03.24"]
[Round "3.4"]
[White "Harvey, Marcus R"]
[Black "Wadsworth, Matthew J"]
[Result "1/2-1/2"]
[ECO "A14"]
[WhiteElo "2468"]
[BlackElo "2450"]
[Annotator "RC"]
[PlyCount "143"]
[EventDate "2024.03.22"]
[EventType "tourn"]
[EventCountry "ENG"]
[SourceTitle "playchess.com"]
[Source "ChessBase"]
[SourceQuality "1"]
[TimeControl "5400+30"]

1. c4 {[%emt 0:00:01]} e6 {[%emt 0:00:23]} 2. Nf3 {[%emt 0:00:37]} Nf6 {[%emt 0:00:21]} 3. b3 {[%emt 0:01:27]} b6 {[%emt 0:02:33]} 4. g3 {[%emt 0:00:45]} Bb7 {[%emt 0:00:50]} 5. Bg2 {[%emt 0:00:06]} Be7 {[%emt 0:00:52]} 6. Bb2 {[%emt 0:01:56]} O-O {[%emt 0:00:29]} 7. O-O {[%emt 0:01:59]} d5 {[%emt 0:00:27]} 8. e3 {[%emt 0:01:34]} dxc4 {[%emt 0:00:48]} 9. bxc4 {[%emt 0:00:09]} c5 {[%emt 0:00:07]} 10. d3 {[%emt 0:01:24]} Nc6 {[%emt 0:02:09]} 11. Qe2 {[%emt 0:00:49]} Qc7 {[%emt 0:02:53]} 12. Nc3 {[%emt 0:00:33]} Rfd8 {[%emt 0:07:38]} 13. Rfd1 {[%emt 0:01:16]} a6 {[%emt 0:00:25]} 14. Ne1 {[%emt 0:01:24]} Na7 {[%emt 0:09:02]} 15. e4 {[%emt 0:08:30]} Nc6 {[%emt 0:06:09]} 16. Nc2 {[%emt 0:01:14]} Nd4 {[%emt 0:10:12]} 17. Nxd4 {[%emt 0:01:05]} cxd4 {[%emt 0:00:07]} 18. Nb1 {[%emt 0:00:13]} e5 {[%emt 0:04:40]} 19. Nd2 {[%emt 0:00:44]} Nd7 {[%emt 0:02:06]} 20. Nb3 {[%emt 0:03:25]} a5 {[%emt 0:01:30]} 21. a4 {[%emt 0:07:24]} Nc5 {[%emt 0:05:34]} 22. Nxc5 {[%emt 0:02:44]} bxc5 {[%emt 0:00:02]} 23. Bc1 {[%emt 0:00:12]} Bc6 {[%emt 0:01:12]} 24. Bh3 {[%emt 0:07:00]} Rdb8 {[%emt 0:01:29]} 25. Qc2 {[%emt 0:00:52]} Rb7 {[%emt 0:05:59]} 26. Bd2 {[%emt 0:01:38]} Rab8 {[%emt 0:01:16]} 27. Rdb1 {[%emt 0:00:52]} Bd8 {[%emt 0:03:08]} 28. Rb5 {[%emt 0:05:04]} Bxb5 {[%emt 0:00:23]} 29. cxb5 {[%emt 0:00:08]} c4 {[%emt 0:03:42]} 30. dxc4 {[%emt 0:02:53]} Be7 {[%emt 0:01:06]} 31. Qd3 {[%emt 0:02:18]} Ra8 {[%emt 0:02:00]} 32. Rc1 {[%emt 0:02:26]} Bc5 {[%emt 0:00:09]} 33. Bg4 {[%emt 0:01:25]} Qd6 {[%emt 0:01:36]} 34. Rc2 {[%emt 0:00:57]} Rc7 {[%emt 0:01:15]} 35. Be2 {[%emt 0:04:16]} Bb4 {[%emt 0:06:13]} 36. Bc1 {[%emt 0:00:52]} Qc5 {[%emt 0:01:57]} 37. Qb3 {[%emt 0:00:48]} Rd8 {[%emt 0:01:43]} 38. Bd3 {[%emt 0:00:05]} h5 {[%emt 0:01:00]} 39. Ra2 {[%emt 0:04:08]} h4 {[%emt 0:04:01]} 40. Qd1 {[%emt 0:01:53]} Rd6 {[%emt 0:01:11]} 41. Qg4 {[%emt 0:00:33]} hxg3 {[%emt 0:00:31]} 42. hxg3 {[%emt 0:33:51]} Rg6 {[%emt 0:01:03]} 43. Qh4 {[%emt 0:00:00]} Qe7 {[%emt 0:01:52]} 44. Qxe7 {[%emt 0:00:00]} Rxe7 {[%emt 0:00:01]} 45. Kf1 {[%emt 0:00:00]} Rc7 {[%emt 0:01:07]} 46. Ra1 {[%emt 0:00:00]} Kf8 {[%emt 0:01:32]} 47. Rb1 {[%emt 0:00:00]} Bc5 {[%emt 0:01:14]} 48. Bd2 {[%emt 0:00:00]} Ra7 {[%emt 0:00:22]} 49. Ke2 {[%emt 0:00:00]} Ke7 {[%emt 0:00:27]} 50. Rh1 {[%emt 0:00:00]} Ra8 {[%emt 0:00:01]} 51. Rh5 {[%emt 0:00:00]} Re6 {[%emt 0:04:55]} 52. f4 {[%emt 0:00:00]} f6 {[%emt 0:00:36]} 53. f5 {[%emt 0:00:00]} Rb6 {[%emt 0:00:46]} 54. Rh7 {[%emt 0:00:00]} Kf7 {[%emt 0:00:32]} 55. Bh6 {[%emt 0:00:00]} Rg8 {[%emt 0:01:53]} 56. Bc2 {[%emt 0:00:00]} Rbb8 {[%emt 0:01:04]} 57. Kd3 {[%emt 0:00:00]} Kf8 {[%emt 0:00:58]} 58. Bd2 {[%emt 0:00:00]} Ra8 {[%emt 0:00:03]} 59. Bd1 {[%emt 0:00:00]} Ke7 {[%emt 0:00:22]} 60. Bh5 {[%emt 0:00:00]} Kd6 {[%emt 0:00:12]} 61. g4 {[%emt 0:00:00]} Bb4 {[%emt 0:01:31]} 62. Bc1 {[%emt 0:00:00]} Ra7 {[%emt 0:00:43]} 63. g5 {[%emt 0:00:00]} Rc7 {[%emt 0:00:29]} 64. Bd1 {[%emt 0:00:00]} Rxc4 {[%emt 0:00:50]} 65. Bb2 {[%emt 0:04:09]} Rcc8 {[%emt 0:00:26]} 66. Bb3 {[%emt 0:00:35]} Rh8 {[%emt 0:00:34]} 67. g6 {[%emt 0:00:04]} Kc5 {[%emt 0:00:31]} 68. Be6 {[%emt 0:00:45]} Rcd8 {[%emt 0:00:01]} 69. Bc1 {[%emt 0:01:19]} Kb6 {[%emt 0:00:07]} 70. Bb2 {[%emt 0:00:40]} Kc5 {[%emt 0:00:22]} 71. Bc1 {[%emt 0:00:54]} Kb6 {[%emt 0:00:33]} 72. Bb2 {[%emt 0:02:08]} 1/2-1/2

[Event "4NCL Spring GM Round Robin 2024"]
[Site "Peterborough"]
[Date "2024.03.24"]
[Round "3.5"]
[White "Cherniaev, Alexander"]
[Black "Agdelen, Huseyin Can"]
[Result "1/2-1/2"]
[ECO "C90"]
[WhiteElo "2375"]
[BlackElo "2408"]
[Annotator "TA"]
[PlyCount "34"]
[EventDate "2024.03.22"]
[EventType "tourn"]
[EventCountry "ENG"]
[SourceTitle "playchess.com"]
[Source "ChessBase"]
[SourceQuality "1"]
[TimeControl "5400+30"]

{[%evp 23,34,5,16,0,0,0,0,-10,0,-18,-9,-18,-23]} 1. e4 {[%emt 0:03:16]} e5 {[%emt 0:00:16]} 2. Nf3 {[%emt 0:00:26]} Nc6 {[%emt 0:00:06]} 3. Bb5 {[%emt 0:00:07][%cal Bf1b5,Bb5a4,Ba4b3][%mdl 32]} a6 {[%emt 0:01:05]} 4. Ba4 {[%emt 0:00:07]} Nf6 {[%emt 0:00:08]} 5. O-O {[%emt 0:00:07]} Be7 {[%emt 0:01:04]} 6. Re1 {[%emt 0:00:50]} b5 {[%emt 0:00:13]} 7. Bb3 {[%emt 0:00:06]} O-O {[%emt 0:00:09]} 8. d3 {[%emt 0:03:34]} d6 {[%emt 0:01:20]} 9. c3 {[%emt 0:00:05]} Na5 {[%emt 0:03:25]} 10. Bc2 {[%emt 0:00:05]} c5 {[%emt 0:00:06]} 11. Nbd2 {[%emt 0:00:06][%cal Bb1d2,Bd2f1,Bf1g3][%mdl 32]} Re8 {[%emt 0:00:46]} 12. Nf1 {[%emt 0:00:07]} Nc6 {[%emt 0:02:13] The position is equal.} 13. a3 {[%emt 0:01:33]} h6 {[%emt 0:06:54]} 14. Ng3 {[%emt 0:06:33]} Bf8 {[%emt 0:01:48]} 15. h3 {[%emt 0:05:00]} d5 {[%emt 0:11:08]} 16. d4 {[%emt 0:01:19]} cxd4 {[%emt 0:15:18]} 17. cxd4 {[%emt 0:00:53]} dxe4 {[%emt 0:05:38] A rather calm draw.   Weighted Error Value: White=0.11 (very precise) /Black=0.02 (flawless) .  OK:         	---       	Black=3} 1/2-1/2

[Event "4NCL Spring GM Round Robin 2024"]
[Site "Peterborough"]
[Date "2024.03.25"]
[Round "4.1"]
[White "Gumularz, Szymon"]
[Black "Agdelen, Huseyin Can"]
[Result "1-0"]
[ECO "A37"]
[WhiteElo "2590"]
[BlackElo "2408"]
[Annotator "TA"]
[PlyCount "59"]
[EventDate "2024.03.22"]
[EventType "tourn"]
[EventCountry "ENG"]
[SourceTitle "playchess.com"]
[Source "ChessBase"]
[SourceQuality "1"]
[TimeControl "5400+30"]

{[%evp 20,59,8,0,5,7,7,0,37,29,54,70,78,61,75,54,69,24,24,27,48,58,61,60,133,130,179,170,177,174,171,173,146,150,579,207,29987,29988,29992,29993,29993,29994]} 1. c4 {[%emt 0:00:09]} c5 {[%emt 0:06:55]} 2. Nf3 {[%emt 0:00:09]} Nc6 {[%emt 0:00:05]} 3. Nc3 {[%emt 0:00:06]} e5 {[%emt 0:01:30]} 4. g3 {[%emt 0:00:08]} g6 {[%emt 0:00:36]} 5. Bg2 {[%emt 0:00:24]} Bg7 {[%emt 0:00:59]} 6. O-O {[%emt 0:01:00]} Nge7 {[%emt 0:01:26]} 7. d3 {[%emt 0:00:06]} O-O {[%emt 0:06:50]} 8. Bg5 {[%emt 0:03:49]} f6 {[%emt 0:05:14]} 9. Bd2 {[%emt 0:00:05]} d6 {[%emt 0:00:51]} 10. a3 {[%emt 0:00:21][%cal Ba2a3,Ba3b4,Bb4b5][%mdl 32]} Be6 {[%emt 0:01:32]} 11. Rb1 {[%emt 0:00:59]} Rc8 {[%emt 0:04:55]} 12. b4 {[%emt 0:00:29]} b6 {[%emt 0:00:24]} 13. Ne1 {[%emt 0:07:26]} cxb4 {[%emt 0:16:29] Die Stellung ist ausgeglichen.} 14. axb4 {[%emt 0:00:07]} d5 {[%emt 0:00:04]} 15. b5 {[%emt 0:01:55]} Nb8 {[%emt 0:03:11]} 16. cxd5 {[%emt 0:02:10]} Nxd5 {[%emt 0:03:34]} 17. Nxd5 {[%emt 0:00:49]} Bxd5 {[%emt 0:00:06]} 18. Bxd5+ {[%emt 0:01:07]} Qxd5 {[%emt 0:00:02]} 19. Qa4 {[%emt 0:00:10]} Rf7 {[%emt 0:04:54]} 20. Nc2 $36 {[%emt 0:00:29][%cal Be1c2,Bc2b4,Bb4d5][%mdl 2080] Weiss kämpft um Vorteil.} Rfc7 {[%emt 0:02:40]} 21. Nb4 {[%emt 0:01:10]} Qd7 {[%emt 0:00:40]} (21... Qf7 $14) 22. e4 $16 {[%emt 0:03:33]} Qh3 {[%emt 0:09:02]} (22... Rb7 $16 {ist wohl besser.} 23. Nd5 f5) 23. Rfc1 {[%emt 0:04:53]} Bf8 {[%emt 0:05:38]} 24. Nd5 {[%emt 0:02:29][%csl LRc7,LRf6]} Rf7 {[%emt 0:00:07]} 25. Rxc8 {[%emt 0:01:19]} Qxc8 {[%emt 0:00:03]} 26. Rc1 {[%emt 0:00:17][%cal Bb1c1,Bc1c7,Bc7f7][%mdl 32] Weiß steht deutlich aktiver.} Qg4 {[%emt 0:00:24] [#] Führt Schwarz ins Verderben.} (26... Qd8 $16 {ist zäher.} 27. Be3 Bd6) 27. Qxa7 $3 {[%emt 0:01:40][%mdl 512]} Qe2 $2 {[%emt 0:01:31]} (27... Rxa7 $18 28. Nxf6+ Kf7 29. Nxg4 Nd7) (27... Qxg3+ 28. hxg3) 28. Rc7 {[%emt 0:01:09] Weiß setzt Matt.} Qxd3 {[%emt 0:05:25]} 29. Rxf7 {[%emt 0:00:13]} Qb1+ {[%emt 0:00:03] [#]} 30. Bc1 $1 {[%emt 0:00:16] Gewichteter Fehlerwert: Weiß=0.22 (präzise) /Schwarz=0.87.  Verlustzug:     	---       	Schwarz=1     Fehler:       	Weiß=1     	Schwarz=3     Ungenau:       	Weiß=1     	Schwarz=1     OK:         	Weiß=7     	Schwarz=4     Bester:       	Weiß=2     	---} 1-0

[Event "4NCL Spring GM Round Robin 2024"]
[Site "Peterborough"]
[Date "2024.03.25"]
[Round "4.2"]
[White "Wadsworth, Matthew J"]
[Black "Cherniaev, Alexander"]
[Result "1-0"]
[ECO "A87"]
[WhiteElo "2450"]
[BlackElo "2375"]
[Annotator "TA"]
[PlyCount "77"]
[EventDate "2024.03.22"]
[EventType "tourn"]
[EventCountry "ENG"]
[SourceTitle "playchess.com"]
[Source "ChessBase"]
[SourceQuality "1"]
[TimeControl "5400+30"]

{[%evp 13,77,22,35,40,47,24,26,0,0,0,0,8,9,5,27,-14,-11,-10,-21,-33,-30,-33,-29,-47,-12,0,0,0,36,26,21,27,65,60,98,104,100,97,103,103,97,0,100,112,105,100,113,107,97,96,129,117,169,169,169,153,159,132,240,251,272,220,600,597,589,581]} 1. d4 {[%emt 0:00:03]} d6 {[%emt 0:00:06]} 2. Nf3 {[%emt 0:00:12]} g6 {[%emt 0:00:34]} 3. c4 {[%emt 0:00:19]} f5 {[%emt 0:00:37]} 4. g3 {[%emt 0:00:11]} Nf6 {[%emt 0:00:06]} 5. Bg2 {[%emt 0:00:08]} Bg7 {[%emt 0:00:05]} 6. O-O {[%emt 0:00:18]} O-O {[%emt 0:00:09]} 7. Nc3 {[%emt 0:00:14]} a5 {[%emt 0:00:06]} 8. Re1 {[%emt 0:03:20]} Na6 {[%emt 0:01:56]} 9. a3 {[%emt 0:02:52]} c6 {[%emt 0:00:15]} 10. e4 {[%emt 0:04:13] White has an edge.} fxe4 {[%emt 0:05:29]} 11. Nxe4 {[%emt 0:03:33]} Nxe4 {[%emt 0:00:08]} 12. Rxe4 {[%emt 0:00:05]} Bf5 {[%emt 0:00:07]} 13. Re1 {[%emt 0:02:20]} e5 {[%emt 0:09:59]} 14. dxe5 {[%emt 0:11:29]} dxe5 {[%emt 0:00:10]} 15. Qxd8 {[%emt 0:04:55]} Raxd8 {[%emt 0:13:19]} 16. Be3 {[%emt 0:00:48]} e4 {[%emt 0:02:11][%csl LRb2,LRf3]} 17. Ng5 {[%emt 0:00:23]} Rde8 {[%emt 0:16:41][%cal Oh7h6]} 18. Bb6 {[%emt 0:17:06][%csl LRa5,LRe4][%cal Rg5e4]} Bxb2 {[%emt 0:02:50]} 19. Ra2 {[%emt 0:00:42]} Bf6 {[%emt 0:08:00][%cal Bb2f6,Bf6d8,Bd8e7,Be7d6][%mdl 32]} 20. Nxe4 {[%emt 0:00:30]} Bxe4 {[%emt 0:00:15]} 21. Bxe4 {[%emt 0:02:10][%cal Oa2e2]} (21. Rxe4 Rxe4 22. Bxe4 Bd8 $11) 21... Bd8 {[%emt 0:00:27]} 22. Ba7 {[%emt 0:01:46]} Be7 {[%emt 0:02:38]} 23. Rae2 $1 {[%emt 0:06:32][%cal Oe4c6] Bxc6! would now be deadly.} Kf7 {[%emt 0:00:32]} ({Of course not} 23... Bxa3 24. Bxc6 (24. Bd5+ cxd5 25. Rxe8 dxc4 $11) 24... Rxe2 25. Bd5+ Kg7 26. Rxe2 $16 (26. Bd4+ Kh6 $11)) 24. Rb1 {[%emt 0:03:15]} Nc5 {[%emt 0:16:33]} 25. Bf3 {[%emt 0:03:40][%cal Oe2e7] [#] Threatens to win with Rxe7+! This pair of bishops is nice.} Bd6 {[%emt 0:02:35]} 26. Rd2 {[%emt 0:00:39]} Be7 {[%emt 0:01:57]} 27. Re2 {[%emt 0:09:17][%cal Oe2e7] And now Rxe7+! would win. White has more active pieces.} Bd6 {[%emt 0:00:08]} 28. Bxc5 {[%emt 0:01:30]} Bxc5 {[%emt 0:00:14]} 29. Rxb7+ {[%emt 0:00:06]} Kg8 {[%emt 0:00:41]} 30. Rxe8 {[%emt 0:01:06]} (30. Bxc6 $2 {too greedy.} Rxe2 31. Rb5 Bd4 $19 (31... Bxa3 $2 32. Rxa5 Be7 33. f3 $19) (31... Bxf2+ $2 32. Kf1 $19) (31... Re1+ $2 32. Kg2 $19)) 30... Rxe8 $16 {[%emt 0:00:12][%mdl 4096] Endgame. KRB-KRB} 31. a4 {[%emt 0:02:48][%cal Ob7c7]} Re1+ {[%emt 0:17:00]} 32. Kg2 {[%emt 0:00:01]} Ra1 {[%emt 0:00:00]} (32... Re6 $16 33. Rb8+ Kg7 34. Rb7+ Re7 35. Rxe7+ (35. Bxc6 Rxb7 36. Bxb7 h6 $18) 35... Bxe7 36. Bxc6 Kf7) 33. Bxc6 $18 {[%emt 0:01:43]} Ra2 {[%emt 0:00:00]} 34. Bd5+ {[%emt 0:00:52]} Kh8 {[%emt 0:00:00]} 35. Rf7 {[%emt 0:01:02]} Rxa4 {[%emt 0:00:00]} (35... h5 $16 36. h3 Re2) 36. Rc7 {[%emt 0:02:01]} Bd4 {[%emt 0:00:00]} 37. c5 {[%emt 0:00:34][%cal Bc4c5,Bc5c6][%mdl 32]} Ra3 $2 {[%emt 0:00:00] [#]} (37... Rb4 38. c6 Rb8) 38. c6 {[%emt 0:00:44]} Rc3 {[%emt 0:00:00]} 39. f4 {[%emt 0:04:12] Weighted Error Value: White=0.09 (flawless) /Black=0.26 (precise) .  Mistake:       	---       	Black=3      Inaccurate:     	White=1     	Black=4      OK:         	White=10    	Black=15     Best:        	White=5     	Black=1      Strong:       	White=1     	---} 1-0